[Event "Early-Titled-Tuesday-Blitz-September-05-2023"]
[Site "Chess.com"]
[Date "2023.09.05"]
[Round "1"]
[White "Lennis93"]
[Black "Shivananda1964"]
[Result "1-0"]
[WhiteElo "2802"]
[BlackElo "2441"]
[TimeControl "180+1"]
[EndTime "8:07:11 PDT"]
[Termination "Lennis93 won by resignation"]

1. Nf3 {[%clk 0:02:55.1]} 1... Nf6 {[%clk 0:02:59.2]} 2. d4 {[%clk 0:02:54.6]}
2... b5 {[%clk 0:02:53.6]} 3. g3 {[%clk 0:02:52]} 3... Bb7 {[%clk 0:02:53.1]} 4.
Bg2 {[%clk 0:02:51.6]} 4... c5 {[%clk 0:02:53.8]} 5. c3 {[%clk 0:02:37.8]} 5...
e6 {[%clk 0:02:50.8]} 6. O-O {[%clk 0:02:36.6]} 6... Na6 {[%clk 0:02:48.8]} 7.
a4 {[%clk 0:02:34.7]} 7... b4 {[%clk 0:02:48.1]} 8. Bg5 {[%clk 0:02:31.6]} 8...
Be7 {[%clk 0:02:48]} 9. Nbd2 {[%clk 0:02:31.2]} 9... O-O {[%clk 0:02:47]} 10. e3
{[%clk 0:02:26]} 10... h6 {[%clk 0:02:42.6]} 11. Bxf6 {[%clk 0:02:25.5]} 11...
Bxf6 {[%clk 0:02:43]} 12. Nc4 {[%clk 0:02:23.1]} 12... bxc3 {[%clk 0:02:18.6]}
13. bxc3 {[%clk 0:02:22.4]} 13... Bxf3 {[%clk 0:02:04]} 14. Qxf3 {[%clk
0:02:21]} 14... d5 {[%clk 0:02:04.7]} 15. Na3 {[%clk 0:02:16.3]} 15... cxd4
{[%clk 0:01:47.3]} 16. cxd4 {[%clk 0:02:17.2]} 16... Be7 {[%clk 0:01:42.3]} 17.
Nb5 {[%clk 0:02:15.9]} 17... Nb4 {[%clk 0:01:35.5]} 18. Rfc1 {[%clk 0:02:15.5]}
18... a6 {[%clk 0:01:30.7]} 19. Nc3 {[%clk 0:02:14.4]} 19... Qa5 {[%clk
0:01:22.5]} 20. e4 {[%clk 0:02:14.6]} 20... dxe4 {[%clk 0:01:18.5]} 21. Nxe4
{[%clk 0:02:05.8]} 21... Rac8 {[%clk 0:01:09]} 22. Qe2 {[%clk 0:02:03.4]} 22...
Nd5 {[%clk 0:00:59.9]} 23. Nc5 {[%clk 0:01:46.1]} 23... Bxc5 {[%clk 0:00:55.7]}
24. dxc5 {[%clk 0:01:45.5]} 24... Rfd8 {[%clk 0:00:48]} 25. c6 {[%clk
0:01:42.1]} 25... Rd6 {[%clk 0:00:34.7]} 26. Qc4 {[%clk 0:01:28.6]} 26... Rdxc6
{[%clk 0:00:22.8]} 27. Qxc6 {[%clk 0:01:29.5]} 27... Rxc6 {[%clk 0:00:23.1]} 28.
Rxc6 {[%clk 0:01:29.2]} 28... Nb4 {[%clk 0:00:12]} 29. Rc8+ {[%clk 0:01:28.6]}
29... Kh7 {[%clk 0:00:12.2]} 30. Be4+ {[%clk 0:01:23.8]} 30... f5 {[%clk
0:00:12.1]} 31. Bg2 {[%clk 0:01:24.3]} 31... Qe5 {[%clk 0:00:12.2]} 32. Rd1
{[%clk 0:01:22]} 32... a5 {[%clk 0:00:11.3]} 33. Bf1 {[%clk 0:01:19.5]} 33... h5
{[%clk 0:00:09.8]} 34. Rd7 {[%clk 0:01:13.4]} 34... Nd5 {[%clk 0:00:07.9]} 35.
Rc5 {[%clk 0:01:06.3]} 35... Qd4 {[%clk 0:00:06.4]} 36. Rxa5 {[%clk 0:01:04.8]}
36... Qc3 {[%clk 0:00:05.1]} 37. Raa7 {[%clk 0:01:04.3]} 37... h4 {[%clk
0:00:03.2]} 38. Rxg7+ {[%clk 0:01:04.3]} 38... Qxg7 {[%clk 0:00:03]} 39. Rxg7+
{[%clk 0:01:05.1]} 39... Kxg7 {[%clk 0:00:03.4]} 40. gxh4 {[%clk 0:01:05.3]}
40... Kh6 {[%clk 0:00:02.5]} 41. Be2 {[%clk 0:01:03.6]} 41... e5 {[%clk
0:00:02.9]} 42. a5 {[%clk 0:01:03]} 42... e4 {[%clk 0:00:02.6]} 43. a6 {[%clk
0:01:03.3]} 43... Nc7 {[%clk 0:00:02.3]} 44. a7 {[%clk 0:01:03.4]} 44... f4
{[%clk 0:00:03.1]} 45. Kf1 {[%clk 0:00:51.5]} 45... f3 {[%clk 0:00:03]} 46. Bb5
{[%clk 0:00:49.1]} 46... Kh5 {[%clk 0:00:03.7]} 47. Bc6 {[%clk 0:00:49.6]} 47...
Kxh4 {[%clk 0:00:02.6]} 48. Bxe4 {[%clk 0:00:49.5]} 48... Kg4 {[%clk 0:00:02.5]}
49. a8=Q {[%clk 0:00:47.1]} 1-0

[Event "Early-Titled-Tuesday-Blitz-September-05-2023"]
[Site "Chess.com"]
[Date "2023.09.05"]
[Round "1"]
[White "tk22h"]
[Black "splendidkid"]
[Result "0-1"]
[WhiteElo "2423"]
[BlackElo "2763"]
[TimeControl "180+1"]
[EndTime "8:07:11 PDT"]
[Termination "splendidkid won by resignation"]

1. d4 {[%clk 0:02:58.7]} 1... Nf6 {[%clk 0:03:00.3]} 2. Nf3 {[%clk 0:02:58.4]}
2... g6 {[%clk 0:03:00.9]} 3. g3 {[%clk 0:02:57.8]} 3... Bg7 {[%clk 0:03:01.2]}
4. Bg2 {[%clk 0:02:58.3]} 4... O-O {[%clk 0:03:01.8]} 5. O-O {[%clk 0:02:58.1]}
5... d6 {[%clk 0:03:02.3]} 6. c4 {[%clk 0:02:51.8]} 6... Nbd7 {[%clk 0:03:02]}
7. Nc3 {[%clk 0:02:51.2]} 7... e5 {[%clk 0:03:02.1]} 8. e4 {[%clk 0:02:49.4]}
8... exd4 {[%clk 0:03:01.3]} 9. Nxd4 {[%clk 0:02:49.1]} 9... Re8 {[%clk
0:03:02.2]} 10. h3 {[%clk 0:02:47.7]} 10... a6 {[%clk 0:03:02.3]} 11. Re1 {[%clk
0:02:46.6]} 11... Rb8 {[%clk 0:03:02]} 12. Bf4 {[%clk 0:02:42.8]} 12... Ne5
{[%clk 0:03:00]} 13. b3 {[%clk 0:02:41.2]} 13... c5 {[%clk 0:02:59.7]} 14. Nc2
{[%clk 0:02:40.3]} 14... b5 {[%clk 0:02:56.3]} 15. cxb5 {[%clk 0:02:36.3]} 15...
axb5 {[%clk 0:02:57.2]} 16. Rc1 {[%clk 0:02:33.6]} 16... b4 {[%clk 0:02:54.9]}
17. Nd5 {[%clk 0:02:33.7]} 17... Ba6 {[%clk 0:02:54.1]} 18. Bxe5 {[%clk
0:02:31.4]} 18... Rxe5 {[%clk 0:02:51.9]} 19. Nce3 {[%clk 0:02:24.8]} 19... Nxd5
{[%clk 0:02:43.1]} 20. Nxd5 {[%clk 0:02:24.2]} 20... Ra8 {[%clk 0:02:41.2]} 21.
Rc2 {[%clk 0:02:23.1]} 21... Bb7 {[%clk 0:02:36.2]} 22. Rce2 {[%clk 0:02:01.2]}
22... Re8 {[%clk 0:02:31]} 23. Qc2 {[%clk 0:01:56.7]} 23... Bd4 {[%clk
0:02:27.4]} 24. Kh2 {[%clk 0:01:55.7]} 24... h5 {[%clk 0:02:22.8]} 25. h4 {[%clk
0:01:54.7]} 25... Ra7 {[%clk 0:01:59.6]} 26. Nf4 {[%clk 0:01:52.1]} 26... Ba6
{[%clk 0:01:56.8]} 27. Nd3 {[%clk 0:01:45.9]} 27... Qa5 {[%clk 0:01:51.7]} 28.
Rd1 {[%clk 0:01:44.5]} 28... Bb7 {[%clk 0:01:45.4]} 29. Nf4 {[%clk 0:01:41.5]}
29... Rea8 {[%clk 0:01:43.9]} 30. e5 {[%clk 0:01:27]} 30... dxe5 {[%clk
0:01:43.6]} 31. Bxb7 {[%clk 0:01:24.4]} 31... Rxb7 {[%clk 0:01:43.5]} 32. Nxg6
{[%clk 0:01:18.3]} 32... fxg6 {[%clk 0:01:40.7]} 33. Qxg6+ {[%clk 0:01:18.2]}
33... Rg7 {[%clk 0:01:40.8]} 34. Qe6+ {[%clk 0:01:17.9]} 34... Kh8 {[%clk
0:01:34]} 35. Qh6+ {[%clk 0:01:16.5]} 35... Kg8 {[%clk 0:01:14.8]} 36. Qe6+
{[%clk 0:01:16.3]} 36... Rf7 {[%clk 0:01:12.2]} 37. Qg6+ {[%clk 0:01:09.7]}
37... Kf8 {[%clk 0:01:11.3]} 38. Qd6+ {[%clk 0:01:04.9]} 38... Re7 {[%clk
0:01:06.1]} 39. Rd3 {[%clk 0:01:00.1]} 39... Qa6 {[%clk 0:00:47.5]} 40. Rf3+
{[%clk 0:00:52.2]} 40... Ke8 {[%clk 0:00:47.3]} 41. Qd5 {[%clk 0:00:48.4]} 41...
Rd8 {[%clk 0:00:35.4]} 42. Qg8+ {[%clk 0:00:48]} 42... Kd7 {[%clk 0:00:33.2]}
43. Qd5+ {[%clk 0:00:44.7]} 43... Kc7 {[%clk 0:00:32.1]} 44. Qe4 {[%clk
0:00:44.8]} 44... Qc6 {[%clk 0:00:31.3]} 45. Qf5 {[%clk 0:00:43.2]} 45... e4
{[%clk 0:00:29.5]} 46. Rf4 {[%clk 0:00:43.2]} 46... e3 {[%clk 0:00:28.6]} 47.
fxe3 {[%clk 0:00:36.6]} 47... Be5 {[%clk 0:00:29]} 48. Re4 {[%clk 0:00:33.8]}
48... Qxe4 {[%clk 0:00:27.8]} 49. Qxe4 {[%clk 0:00:30.7]} 49... Bxg3+ {[%clk
0:00:27.9]} 50. Kxg3 {[%clk 0:00:31.1]} 50... Rxe4 {[%clk 0:00:28.8]} 0-1

[Event "Early-Titled-Tuesday-Blitz-September-05-2023"]
[Site "Chess.com"]
[Date "2023.09.05"]
[Round "1"]
[White "I_am_Javi"]
[Black "Ducke13"]
[Result "1-0"]
[WhiteElo "2747"]
[BlackElo "2419"]
[TimeControl "180+1"]
[EndTime "8:07:13 PDT"]
[Termination "I_am_Javi won on time"]

1. e4 {[%clk 0:02:17.5]} 1... c5 {[%clk 0:02:57.2]} 2. Nf3 {[%clk 0:02:16.4]}
2... d6 {[%clk 0:02:57.5]} 3. d4 {[%clk 0:02:12.5]} 3... cxd4 {[%clk 0:02:58.4]}
4. Nxd4 {[%clk 0:02:07.3]} 4... Nf6 {[%clk 0:02:58.5]} 5. Nc3 {[%clk 0:02:05.9]}
5... a6 {[%clk 0:02:59]} 6. Bc4 {[%clk 0:02:05.7]} 6... e6 {[%clk 0:02:58.3]} 7.
Bb3 {[%clk 0:01:48.7]} 7... b5 {[%clk 0:02:58.7]} 8. f3 {[%clk 0:01:43.3]} 8...
Bd7 {[%clk 0:02:41]} 9. Be3 {[%clk 0:01:42.1]} 9... Nc6 {[%clk 0:02:40.2]} 10.
Qd2 {[%clk 0:01:39.7]} 10... Rc8 {[%clk 0:02:40.4]} 11. g4 {[%clk 0:01:20.7]}
11... Be7 {[%clk 0:02:36.5]} 12. g5 {[%clk 0:01:12.5]} 12... Nh5 {[%clk
0:02:34.6]} 13. Nce2 {[%clk 0:01:12.9]} 13... O-O {[%clk 0:01:37.2]} 14. c3
{[%clk 0:01:06.7]} 14... Qc7 {[%clk 0:01:32.5]} 15. Ng3 {[%clk 0:01:06]} 15...
Nxg3 {[%clk 0:01:26.6]} 16. hxg3 {[%clk 0:01:06.9]} 16... h6 {[%clk 0:01:02.7]}
17. gxh6 {[%clk 0:00:58.2]} 17... g6 {[%clk 0:01:01.9]} 18. h7+ {[%clk 0:00:59]}
18... Kh8 {[%clk 0:01:01.8]} 19. Bh6 {[%clk 0:00:43.1]} 19... Bf6 {[%clk
0:01:00.9]} 20. Bxf8 {[%clk 0:00:41.8]} 20... Rxf8 {[%clk 0:00:58.2]} 21. Nxc6
{[%clk 0:00:42.4]} 21... Bxc6 {[%clk 0:00:54.5]} 22. O-O-O {[%clk 0:00:41.8]}
22... d5 {[%clk 0:00:38.1]} 23. exd5 {[%clk 0:00:39.8]} 23... exd5 {[%clk
0:00:38.1]} 24. Bxd5 {[%clk 0:00:35.2]} 24... Bxd5 {[%clk 0:00:37.2]} 25. Qxd5
{[%clk 0:00:34.2]} 25... Qxg3 {[%clk 0:00:25]} 26. Kb1 {[%clk 0:00:33.8]} 26...
Qf4 {[%clk 0:00:14.4]} 27. Qd6 {[%clk 0:00:31.3]} 27... Qf5+ {[%clk 0:00:13.6]}
28. Ka1 {[%clk 0:00:30.7]} 28... Bg7 {[%clk 0:00:13.1]} 29. Qxa6 {[%clk
0:00:26.8]} 29... b4 {[%clk 0:00:13.2]} 30. Qd3 {[%clk 0:00:26.4]} 30... bxc3
{[%clk 0:00:12.5]} 31. Qxf5 {[%clk 0:00:25.9]} 31... cxb2+ {[%clk 0:00:12.7]}
32. Kb1 {[%clk 0:00:26.6]} 32... gxf5 {[%clk 0:00:13]} 33. Rd5 {[%clk
0:00:26.6]} 33... f4 {[%clk 0:00:10.3]} 34. Rf5 {[%clk 0:00:26.6]} 34... Rc8
{[%clk 0:00:05.3]} 35. Rg5 {[%clk 0:00:21.1]} 35... Bd4 {[%clk 0:00:01.5]} 36.
a4 {[%clk 0:00:20]} 36... Be3 {[%clk 0:00:01.3]} 37. Kxb2 {[%clk 0:00:19.6]}
37... Bd4+ {[%clk 0:00:01.2]} 38. Kb3 {[%clk 0:00:19.5]} 1-0

[Event "Early-Titled-Tuesday-Blitz-September-05-2023"]
[Site "Chess.com"]
[Date "2023.09.05"]
[Round "1"]
[White "MasterKroket"]
[Black "ChessQueen"]
[Result "0-1"]
[WhiteElo "2411"]
[BlackElo "2726"]
[TimeControl "180+1"]
[EndTime "8:07:13 PDT"]
[Termination "ChessQueen won by resignation"]

1. e4 {[%clk 0:02:59.1]} 1... c5 {[%clk 0:02:55.8]} 2. Nf3 {[%clk 0:02:58.7]}
2... Nc6 {[%clk 0:02:55.6]} 3. d4 {[%clk 0:02:58.9]} 3... cxd4 {[%clk 0:02:56]}
4. Nxd4 {[%clk 0:02:59.5]} 4... Nf6 {[%clk 0:02:56.3]} 5. Nc3 {[%clk 0:02:59.3]}
5... d6 {[%clk 0:02:55.8]} 6. Be2 {[%clk 0:02:58.5]} 6... e5 {[%clk 0:02:54.8]}
7. Nb3 {[%clk 0:02:58.6]} 7... Be7 {[%clk 0:02:53.8]} 8. Be3 {[%clk 0:02:56.3]}
8... O-O {[%clk 0:02:50.9]} 9. h3 {[%clk 0:02:54.4]} 9... Be6 {[%clk 0:02:49.7]}
10. Bg5 {[%clk 0:02:47.1]} 10... a5 {[%clk 0:02:44.8]} 11. Bxf6 {[%clk 0:02:44]}
11... Bxf6 {[%clk 0:02:42]} 12. Nd5 {[%clk 0:02:44.7]} 12... a4 {[%clk
0:02:39.3]} 13. Nd2 {[%clk 0:02:43.5]} 13... Nd4 {[%clk 0:02:35.9]} 14. Nxf6+
{[%clk 0:02:34.1]} 14... Qxf6 {[%clk 0:02:34.7]} 15. c3 {[%clk 0:02:34.7]} 15...
Nxe2 {[%clk 0:02:30.8]} 16. Qxe2 {[%clk 0:02:35.6]} 16... d5 {[%clk 0:02:21.9]}
17. O-O {[%clk 0:02:27.2]} 17... Rfd8 {[%clk 0:02:14.2]} 18. exd5 {[%clk
0:02:16.3]} 18... Bxd5 {[%clk 0:02:13.8]} 19. Rfe1 {[%clk 0:02:10.7]} 19... Qg6
{[%clk 0:02:12.3]} 20. f3 {[%clk 0:02:08.8]} 20... f6 {[%clk 0:02:10.6]} 21. Ne4
{[%clk 0:02:08.6]} 21... Qf7 {[%clk 0:02:06]} 22. a3 {[%clk 0:01:49.8]} 22...
Bc4 {[%clk 0:02:05.6]} 23. Qe3 {[%clk 0:01:47.6]} 23... Rd3 {[%clk 0:02:01.4]}
24. Qc5 {[%clk 0:01:41.1]} 24... Rad8 {[%clk 0:02:00.1]} 25. Kh2 {[%clk
0:01:33.7]} 25... Bb3 {[%clk 0:01:51.2]} 26. Re3 {[%clk 0:01:29.3]} 26... R3d5
{[%clk 0:01:45.9]} 27. Qb6 {[%clk 0:01:26]} 27... Qe7 {[%clk 0:01:39.2]} 28.
Rae1 {[%clk 0:01:24.7]} 28... f5 {[%clk 0:01:32]} 29. Nf2 {[%clk 0:01:25]} 29...
h6 {[%clk 0:01:26.5]} 30. R3e2 {[%clk 0:01:12.6]} 30... Kh7 {[%clk 0:01:22.8]}
31. Qb4 {[%clk 0:01:07.4]} 31... Qc7 {[%clk 0:01:17.2]} 32. Kg1 {[%clk
0:01:04.6]} 32... b5 {[%clk 0:01:13.2]} 33. Nh1 {[%clk 0:01:01.8]} 33... Qb6+
{[%clk 0:01:06.7]} 34. Kh2 {[%clk 0:01:01.5]} 34... Qc7 {[%clk 0:00:58.9]} 35.
Ng3 {[%clk 0:00:59.7]} 35... e4 {[%clk 0:00:56.4]} 36. fxe4 {[%clk 0:00:57.1]}
36... Rd3 {[%clk 0:00:56.2]} 37. e5 {[%clk 0:00:55]} 37... f4 {[%clk 0:00:55.3]}
38. Qe4+ {[%clk 0:00:53.3]} 38... Kh8 {[%clk 0:00:54]} 39. Qxf4 {[%clk
0:00:50.7]} 39... Bc4 {[%clk 0:00:53.5]} 40. Re3 {[%clk 0:00:50.2]} 40... Rd2
{[%clk 0:00:53.6]} 41. Ne4 {[%clk 0:00:45.5]} 41... Rxb2 {[%clk 0:00:53.2]} 42.
Nd6 {[%clk 0:00:45.8]} 42... Bd5 {[%clk 0:00:52.6]} 43. Rg3 {[%clk 0:00:44.6]}
43... Rg8 {[%clk 0:00:45.4]} 44. Nf5 {[%clk 0:00:44.4]} 44... Kh7 {[%clk
0:00:38.6]} 45. Nxh6 {[%clk 0:00:39.3]} 45... gxh6 {[%clk 0:00:36.6]} 46. Qf5+
{[%clk 0:00:39.7]} 46... Kh8 {[%clk 0:00:36]} 47. Qf6+ {[%clk 0:00:39]} 47...
Rg7 {[%clk 0:00:34.3]} 48. Qxh6+ {[%clk 0:00:36]} 48... Kg8 {[%clk 0:00:34.8]}
49. Rxg7+ {[%clk 0:00:15.5]} 49... Qxg7 {[%clk 0:00:35.7]} 50. Qxg7+ {[%clk
0:00:13]} 50... Kxg7 {[%clk 0:00:36.6]} 51. e6 {[%clk 0:00:13]} 51... Rxg2+
{[%clk 0:00:36.1]} 0-1

[Event "Early-Titled-Tuesday-Blitz-September-05-2023"]
[Site "Chess.com"]
[Date "2023.09.05"]
[Round "1"]
[White "secretsuperstar7"]
[Black "Korchmar_Vasiliy"]
[Result "0-1"]
[WhiteElo "2382"]
[BlackElo "2676"]
[TimeControl "180+1"]
[EndTime "8:07:13 PDT"]
[Termination "Korchmar_Vasiliy won on time"]

1. e4 {[%clk 0:02:52]} 1... c5 {[%clk 0:02:59.9]} 2. Nf3 {[%clk 0:02:51.9]} 2...
d6 {[%clk 0:03:00.5]} 3. Bb5+ {[%clk 0:02:49.9]} 3... Nd7 {[%clk 0:03:00.1]} 4.
O-O {[%clk 0:02:46.5]} 4... a6 {[%clk 0:03:00.6]} 5. Bxd7+ {[%clk 0:02:42.4]}
5... Bxd7 {[%clk 0:03:01.5]} 6. c3 {[%clk 0:02:41.9]} 6... Nf6 {[%clk
0:03:01.5]} 7. Re1 {[%clk 0:02:41.8]} 7... e6 {[%clk 0:02:55.2]} 8. d4 {[%clk
0:02:41]} 8... Be7 {[%clk 0:02:52.9]} 9. Bf4 {[%clk 0:02:38.7]} 9... O-O {[%clk
0:02:50.9]} 10. h3 {[%clk 0:02:34.9]} 10... Bc6 {[%clk 0:02:48.5]} 11. Nbd2
{[%clk 0:02:34.9]} 11... b5 {[%clk 0:02:47.9]} 12. Qe2 {[%clk 0:02:13.2]} 12...
Re8 {[%clk 0:02:44.8]} 13. Rad1 {[%clk 0:02:12.4]} 13... Qb6 {[%clk 0:02:43.3]}
14. Qd3 {[%clk 0:01:35.6]} 14... d5 {[%clk 0:02:37.3]} 15. exd5 {[%clk
0:01:29.3]} 15... Bxd5 {[%clk 0:02:34.1]} 16. b3 {[%clk 0:01:05.4]} 16... Rad8
{[%clk 0:02:30]} 17. Be3 {[%clk 0:00:46.6]} 17... Qb7 {[%clk 0:02:20.9]} 18. Qf1
{[%clk 0:00:35.1]} 18... cxd4 {[%clk 0:02:00.8]} 19. Nxd4 {[%clk 0:00:32.8]}
19... Ne4 {[%clk 0:01:28.4]} 20. Nxe4 {[%clk 0:00:16.1]} 20... Bxe4 {[%clk
0:01:29.3]} 21. Rc1 {[%clk 0:00:11]} 21... Ba3 {[%clk 0:01:27.5]} 22. Rcd1
{[%clk 0:00:10.7]} 22... Bb2 {[%clk 0:01:28.1]} 23. Bd2 {[%clk 0:00:10.3]} 23...
e5 {[%clk 0:01:22.5]} 24. f3 {[%clk 0:00:09.4]} 24... exd4 {[%clk 0:01:21.5]}
25. fxe4 {[%clk 0:00:09.2]} 25... dxc3 {[%clk 0:01:22.2]} 26. Bg5 {[%clk
0:00:09.1]} 26... Rxd1 {[%clk 0:01:21]} 27. Rxd1 {[%clk 0:00:08.2]} 27... c2
{[%clk 0:01:21.6]} 28. Re1 {[%clk 0:00:06.8]} 28... Rxe4 {[%clk 0:01:15]} 29.
Bc1 {[%clk 0:00:06.8]} 29... Bxc1 {[%clk 0:01:03.7]} 30. Rxc1 {[%clk 0:00:06.3]}
30... Qe7 {[%clk 0:01:04.4]} 31. Rxc2 {[%clk 0:00:04.3]} 31... g6 {[%clk
0:01:03.7]} 32. Rc8+ {[%clk 0:00:04.7]} 32... Kg7 {[%clk 0:01:04.2]} 33. Rc1
{[%clk 0:00:04.5]} 33... Qe5 {[%clk 0:01:03.2]} 34. Rd1 {[%clk 0:00:04.9]} 34...
Re2 {[%clk 0:01:03.3]} 35. Rc1 {[%clk 0:00:04.8]} 35... Rxa2 {[%clk 0:01:02.9]}
36. Re1 {[%clk 0:00:04.6]} 36... Qd4+ {[%clk 0:01:02.7]} 37. Kh1 {[%clk
0:00:04.7]} 37... Qd5 {[%clk 0:01:00.9]} 38. Rd1 {[%clk 0:00:04.6]} 38... Qxb3
{[%clk 0:00:59.6]} 39. Re1 {[%clk 0:00:04.3]} 39... Qd5 {[%clk 0:00:57.8]} 40.
Qg1 {[%clk 0:00:03.3]} 40... Rd2 {[%clk 0:00:56.1]} 41. Rf1 {[%clk 0:00:03.4]}
41... a5 {[%clk 0:00:53.9]} 42. Rf2 {[%clk 0:00:03.4]} 42... Rd1 {[%clk
0:00:50.4]} 43. Rf1 {[%clk 0:00:03.4]} 43... Rxf1 {[%clk 0:00:50.6]} 44. Qxf1
{[%clk 0:00:04.3]} 44... Qe5 {[%clk 0:00:49.3]} 45. Qd3 {[%clk 0:00:04]} 45...
a4 {[%clk 0:00:49.1]} 46. Qf3 {[%clk 0:00:02.3]} 46... b4 {[%clk 0:00:48]} 47.
g4 {[%clk 0:00:02.4]} 47... a3 {[%clk 0:00:47.7]} 48. h4 {[%clk 0:00:02.9]}
48... a2 {[%clk 0:00:47.9]} 49. Qd1 {[%clk 0:00:01.9]} 49... a1=Q {[%clk
0:00:47.9]} 0-1

[Event "Early-Titled-Tuesday-Blitz-September-05-2023"]
[Site "Chess.com"]
[Date "2023.09.05"]
[Round "1"]
[White "vladgoncharov"]
[Black "BogdanDeac"]
[Result "0-1"]
[WhiteElo "2530"]
[BlackElo "3039"]
[TimeControl "180+1"]
[EndTime "8:07:14 PDT"]
[Termination "BogdanDeac won on time"]

1. d4 {[%clk 0:03:00.9]} 1... f5 {[%clk 0:02:56.5]} 2. g3 {[%clk 0:03:00.1]}
2... Nf6 {[%clk 0:02:56.8]} 3. Bg2 {[%clk 0:03:00.1]} 3... g6 {[%clk 0:02:57.4]}
4. Nd2 {[%clk 0:02:59.6]} 4... Nc6 {[%clk 0:02:57.1]} 5. c3 {[%clk 0:02:57.8]}
5... Bg7 {[%clk 0:02:55.7]} 6. e4 {[%clk 0:02:57.1]} 6... fxe4 {[%clk
0:02:45.5]} 7. Nxe4 {[%clk 0:02:56.8]} 7... Nxe4 {[%clk 0:02:27]} 8. Bxe4 {[%clk
0:02:56.1]} 8... d5 {[%clk 0:02:27.3]} 9. Bg2 {[%clk 0:02:55.2]} 9... e5 {[%clk
0:02:27.7]} 10. dxe5 {[%clk 0:02:47.4]} 10... Nxe5 {[%clk 0:02:28.6]} 11. Qxd5
{[%clk 0:02:33.4]} 11... Qe7 {[%clk 0:02:28.1]} 12. Ne2 {[%clk 0:02:18.7]} 12...
c6 {[%clk 0:01:51.9]} 13. Qd1 {[%clk 0:02:08]} 13... Bg4 {[%clk 0:01:51.2]} 14.
O-O {[%clk 0:01:56.9]} 14... Nf3+ {[%clk 0:01:25.4]} 15. Bxf3 {[%clk 0:01:56.6]}
15... Bxf3 {[%clk 0:01:25.2]} 16. Re1 {[%clk 0:01:56.6]} 16... Rd8 {[%clk
0:00:28.3]} 17. Qc2 {[%clk 0:01:53.8]} 17... O-O {[%clk 0:00:25.4]} 18. Be3
{[%clk 0:01:51.4]} 18... Qd7 {[%clk 0:00:18.8]} 19. Qb3+ {[%clk 0:01:11.9]}
19... Bd5 {[%clk 0:00:18.3]} 20. c4 {[%clk 0:01:07.7]} 20... Bf3 {[%clk
0:00:18.2]} 21. Nf4 {[%clk 0:01:01.7]} 21... Rde8 {[%clk 0:00:04.1]} 22. c5+
{[%clk 0:00:41.5]} 22... Kh8 {[%clk 0:00:03.7]} 23. Bd4 {[%clk 0:00:18.1]} 23...
Rxe1+ {[%clk 0:00:03.4]} 24. Rxe1 {[%clk 0:00:17.1]} 24... Qxd4 {[%clk
0:00:03.9]} 25. Qxf3 {[%clk 0:00:13.3]} 25... g5 {[%clk 0:00:03.2]} 26. Rd1
{[%clk 0:00:07.1]} 26... Qf6 {[%clk 0:00:02.7]} 27. Rd6 {[%clk 0:00:04.1]} 27...
Qf7 {[%clk 0:00:03]} 28. Ng6+ {[%clk 0:00:01.7]} 28... hxg6 {[%clk 0:00:03]} 29.
Qe3 {[%clk 0:00:01.8]} 29... Qxa2 {[%clk 0:00:02.7]} 30. Kg2 {[%clk 0:00:01.8]}
30... Qf7 {[%clk 0:00:02.8]} 0-1

[Event "Early-Titled-Tuesday-Blitz-September-05-2023"]
[Site "Chess.com"]
[Date "2023.09.05"]
[Round "1"]
[White "noblerone"]
[Black "HansOnTwitch"]
[Result "0-1"]
[WhiteElo "2541"]
[BlackElo "3061"]
[TimeControl "180+1"]
[EndTime "8:07:15 PDT"]
[Termination "HansOnTwitch won by checkmate"]

1. d4 {[%clk 0:03:00.9]} 1... Nf6 {[%clk 0:02:58.5]} 2. Nf3 {[%clk 0:03:01.8]}
2... g6 {[%clk 0:02:57.7]} 3. Bg5 {[%clk 0:03:01.9]} 3... Bg7 {[%clk 0:02:57.5]}
4. Nbd2 {[%clk 0:03:02.5]} 4... d6 {[%clk 0:02:53.7]} 5. c3 {[%clk 0:03:03.1]}
5... O-O {[%clk 0:02:52]} 6. e3 {[%clk 0:03:00.7]} 6... Nbd7 {[%clk 0:02:51.8]}
7. Bc4 {[%clk 0:03:00.9]} 7... b6 {[%clk 0:02:49.1]} 8. a4 {[%clk 0:02:58.9]}
8... a6 {[%clk 0:02:48]} 9. O-O {[%clk 0:02:58.6]} 9... Bb7 {[%clk 0:02:48]} 10.
Ba2 {[%clk 0:02:58.8]} 10... e5 {[%clk 0:02:42.2]} 11. h3 {[%clk 0:02:46.6]}
11... Qe7 {[%clk 0:02:35.5]} 12. Qc2 {[%clk 0:02:44.9]} 12... Kh8 {[%clk
0:02:33.7]} 13. Bh4 {[%clk 0:02:42.4]} 13... h6 {[%clk 0:02:32.1]} 14. dxe5
{[%clk 0:02:12.7]} 14... dxe5 {[%clk 0:02:29.5]} 15. e4 {[%clk 0:02:08.5]} 15...
Rad8 {[%clk 0:02:18]} 16. Rad1 {[%clk 0:02:02.6]} 16... g5 {[%clk 0:02:07.8]}
17. Bg3 {[%clk 0:02:01.2]} 17... Nh5 {[%clk 0:02:07.8]} 18. Rfe1 {[%clk
0:01:53.4]} 18... Nxg3 {[%clk 0:01:40.1]} 19. fxg3 {[%clk 0:01:53]} 19... Nf6
{[%clk 0:01:39.2]} 20. b4 {[%clk 0:01:09.8]} 20... a5 {[%clk 0:01:17.7]} 21. Qb1
{[%clk 0:00:50.6]} 21... Bc6 {[%clk 0:01:13.9]} 22. b5 {[%clk 0:00:39.8]} 22...
Bb7 {[%clk 0:01:10.6]} 23. Kh2 {[%clk 0:00:40.4]} 23... Rd7 {[%clk 0:01:02.8]}
24. Nc4 {[%clk 0:00:20.4]} 24... Rxd1 {[%clk 0:01:01.2]} 25. Qxd1 {[%clk
0:00:21.3]} 25... Nxe4 {[%clk 0:00:58.1]} 26. Qc2 {[%clk 0:00:16.3]} 26... f5
{[%clk 0:00:57.5]} 27. Ne3 {[%clk 0:00:15.3]} 27... Nxg3 {[%clk 0:00:50.9]} 28.
Kxg3 {[%clk 0:00:14.1]} 28... f4+ {[%clk 0:00:51.5]} 29. Kf2 {[%clk 0:00:15]}
29... fxe3+ {[%clk 0:00:52]} 30. Kxe3 {[%clk 0:00:15.9]} 30... e4 {[%clk
0:00:48.8]} 31. Nh2 {[%clk 0:00:13.7]} 31... Qc5+ {[%clk 0:00:46.8]} 32. Kd2
{[%clk 0:00:13.4]} 32... Rf2+ {[%clk 0:00:27.5]} 33. Re2 {[%clk 0:00:11.5]}
33... Bxc3+ {[%clk 0:00:26.1]} 34. Kd1 {[%clk 0:00:04.9]} 34... Qd4+ {[%clk
0:00:20.3]} 35. Kc1 {[%clk 0:00:04.1]} 35... Rxe2 {[%clk 0:00:19.7]} 36. Qxe2
{[%clk 0:00:04.1]} 36... e3 {[%clk 0:00:20.2]} 37. Nf3 {[%clk 0:00:03.6]} 37...
Bxf3 {[%clk 0:00:18.2]} 38. gxf3 {[%clk 0:00:04.5]} 38... Bd2+ {[%clk
0:00:18.1]} 39. Kd1 {[%clk 0:00:02.3]} 39... Qa1+ {[%clk 0:00:17.8]} 40. Kc2
{[%clk 0:00:03]} 40... Qc3+ {[%clk 0:00:18]} 41. Kb1 {[%clk 0:00:02.1]} 41...
Qc1# {[%clk 0:00:18.9]} 0-1